[Event "Titled Tuesday Blitz May 03 Early 2022"]
[White "Mohammadian, Mohammad"]
[Black "Lashkin, Jegor"]
[WhiteFideId "12566055"]
[BlackFideId "13907808"]
[WhiteElo "1544"]
[BlackElo "2368"]
[Result "0-1"]
[Round "03"]
[TimeControl "180+1"]
[Date "2022.05.03"]
[WhiteClock "0:01:06"]
[BlackClock "0:02:07"]

1. e4 {[%clk 0:03:00]}  g6 {[%clk 0:02:57]} 2. d4 {[%clk 0:02:59]}  Bg7 {[%clk 0:02:58]} 3. Be3 {[%clk 0:02:57]}  b6 {[%clk 0:02:58]} 4. Nf3 {[%clk 0:02:57]}  Bb7 {[%clk 0:02:58]} 5. Nc3 {[%clk 0:02:54]}  e6 {[%clk 0:02:58]} 6. Bd3 {[%clk 0:02:54]}  Ne7 {[%clk 0:02:58]} 7. Qd2 {[%clk 0:02:53]}  h6 {[%clk 0:02:58]} 8. O-O-O {[%clk 0:02:49]}  d6 {[%clk 0:02:57]} 9. h4 {[%clk 0:02:47]}  Nbc6 {[%clk 0:02:56]} 10. g4 {[%clk 0:02:46]}  Nb4 {[%clk 0:02:56]} 11. Kb1 {[%clk 0:02:40]}  Nxd3 {[%clk 0:02:55]} 12. cxd3 {[%clk 0:02:39]}  Qd7 {[%clk 0:02:55]} 13. Rc1 {[%clk 0:02:35]}  c5 {[%clk 0:02:54]} 14. dxc5 {[%clk 0:02:31]}  dxc5 {[%clk 0:02:55]} 15. Rhd1 {[%clk 0:02:23]}  Nc6 {[%clk 0:02:52]} 16. d4 {[%clk 0:02:16]}  cxd4 {[%clk 0:02:51]} 17. Nxd4 {[%clk 0:02:14]}  Ne5 {[%clk 0:02:39]} 18. f3 {[%clk 0:02:01]}  Nc4 {[%clk 0:02:37]} 19. Qf2 {[%clk 0:01:57]}  Nxe3 {[%clk 0:02:37]} 20. Qxe3 {[%clk 0:01:56]}  Qe7 {[%clk 0:02:36]} 21. Ndb5 {[%clk 0:01:50]}  O-O {[%clk 0:02:35]} 22. Rd3 {[%clk 0:01:45]}  Rfd8 {[%clk 0:02:31]} 23. Rcd1 {[%clk 0:01:44]}  Rxd3 {[%clk 0:02:25]} 24. Qxd3 {[%clk 0:01:41]}  Bc6 {[%clk 0:02:21]} 25. Na3 {[%clk 0:01:31]}  Qxh4 {[%clk 0:02:17]} 26. Nc2 {[%clk 0:01:26]}  Rc8 {[%clk 0:02:11]} 27. Ne3 {[%clk 0:01:21]}  Qe7 {[%clk 0:02:10]} 28. Ne2 {[%clk 0:01:14]}  Qb4 {[%clk 0:02:07]} 29. Nf4 {[%clk 0:01:06]}  Qxb2# {[%clk 0:02:07]} 0-1


[Site "https://www.chess.com"]

[Event "Titled Tuesday Blitz May 03 Early 2022"]
[White "Moiseenko, Alexander"]
[Black "Nagy, Gabor"]
[WhiteFideId "14102560"]
[BlackFideId "737119"]
[WhiteElo "2577"]
[BlackElo "2534"]
[Result "1-0"]
[Round "03"]
[TimeControl "180+1"]
[Date "2022.05.03"]
[WhiteClock "0:00:24"]
[BlackClock "0:00:39"]

1. d4 {[%clk 0:02:57]}  Nf6 {[%clk 0:02:59]} 2. Bg5 {[%clk 0:02:57]}  Ne4 {[%clk 0:02:52]} 3. Bf4 {[%clk 0:02:56]}  d5 {[%clk 0:02:53]} 4. f3 {[%clk 0:02:56]}  Nf6 {[%clk 0:02:53]} 5. e4 {[%clk 0:02:57]}  e6 {[%clk 0:02:50]} 6. e5 {[%clk 0:02:57]}  Nfd7 {[%clk 0:02:49]} 7. Be3 {[%clk 0:02:57]}  c5 {[%clk 0:02:50]} 8. c3 {[%clk 0:02:58]}  Nc6 {[%clk 0:02:50]} 9. f4 {[%clk 0:02:58]}  a5 {[%clk 0:02:44]} 10. Nf3 {[%clk 0:02:47]}  a4 {[%clk 0:02:44]} 11. Bd3 {[%clk 0:02:38]}  Qb6 {[%clk 0:02:39]} 12. Qd2 {[%clk 0:02:32]}  cxd4 {[%clk 0:02:35]} 13. cxd4 {[%clk 0:02:30]}  a3 {[%clk 0:02:31]} 14. bxa3 {[%clk 0:02:26]}  Rxa3 {[%clk 0:02:22]} 15. O-O {[%clk 0:02:25]}  Bb4 {[%clk 0:02:21]} 16. Qe2 {[%clk 0:02:20]}  Ra8 {[%clk 0:02:21]} 17. f5 {[%clk 0:02:19]}  exf5 {[%clk 0:02:14]} 18. Bxf5 {[%clk 0:02:11]}  Ne7 {[%clk 0:02:11]} 19. Bd3 {[%clk 0:02:07]}  Nf8 {[%clk 0:02:08]} 20. Ng5 {[%clk 0:02:04]}  Be6 {[%clk 0:02:07]} 21. Qf2 {[%clk 0:01:26]}  Nfg6 {[%clk 0:01:55]} 22. h4 {[%clk 0:01:20]}  h6 {[%clk 0:01:16]} 23. Nxe6 {[%clk 0:01:11]}  fxe6 {[%clk 0:01:07]} 24. Bxg6+ {[%clk 0:01:06]}  Kd7 {[%clk 0:01:05]} 25. Bd3 {[%clk 0:01:00]}  Rhf8 {[%clk 0:01:04]} 26. Qe2 {[%clk 0:01:00]}  Rxf1+ {[%clk 0:01:04]} 27. Qxf1 {[%clk 0:01:00]}  Nc6 {[%clk 0:01:04]} 28. Qf7+ {[%clk 0:00:47]}  Be7 {[%clk 0:01:04]} 29. Nd2 {[%clk 0:00:41]}  Nxd4 {[%clk 0:01:01]} 30. Qf2 {[%clk 0:00:36]}  Bc5 {[%clk 0:00:59]} 31. Rb1 {[%clk 0:00:36]}  Qa7 {[%clk 0:00:54]} 32. Qf7+ {[%clk 0:00:32]}  Be7 {[%clk 0:00:53]} 33. Kh1 {[%clk 0:00:31]}  Rf8 {[%clk 0:00:51]} 34. Qxg7 {[%clk 0:00:30]}  Qa4 {[%clk 0:00:44]} 35. Rxb7+ {[%clk 0:00:28]}  Kc8 {[%clk 0:00:43]} 36. Qxe7 {[%clk 0:00:26]}  Qd1+ {[%clk 0:00:39]} 37. Bg1 {[%clk 0:00:24]}  Qxg1+ {[%clk 0:00:39]} 38. Kxg1 {[%clk 0:00:24]}  Ne2+ {[%clk 0:00:39]} 39. Bxe2 {[%clk 0:00:24]} 1-0


[Site "https://www.chess.com"]

[Event "Titled Tuesday Blitz May 03 Early 2022"]
[White "Murthy, Pappu"]
[Black "Ansh M Shah"]
[WhiteFideId "2013401"]
[BlackFideId "25033379"]
[WhiteElo "2034"]
[BlackElo "1819"]
[Result "1-0"]
[Round "03"]
[TimeControl "180+1"]
[Date "2022.05.03"]
[WhiteClock "0:00:21"]
[BlackClock "0:00:03"]

1. c4 {[%clk 0:03:00]}  Nf6 {[%clk 0:02:56]} 2. Nc3 {[%clk 0:03:00]}  c5 {[%clk 0:02:56]} 3. g3 {[%clk 0:02:59]}  Nc6 {[%clk 0:02:56]} 4. Bg2 {[%clk 0:02:59]}  g6 {[%clk 0:02:56]} 5. e4 {[%clk 0:02:59]}  d6 {[%clk 0:02:56]} 6. Nge2 {[%clk 0:03:00]}  Bg7 {[%clk 0:02:56]} 7. O-O {[%clk 0:03:00]}  O-O {[%clk 0:02:56]} 8. d3 {[%clk 0:02:59]}  e5 {[%clk 0:02:56]} 9. h3 {[%clk 0:02:56]}  Nd4 {[%clk 0:02:55]} 10. f4 {[%clk 0:02:54]}  a6 {[%clk 0:02:49]} 11. a4 {[%clk 0:02:52]}  Nh5 {[%clk 0:02:40]} 12. Kh2 {[%clk 0:02:51]}  f5 {[%clk 0:02:22]} 13. exf5 {[%clk 0:02:44]}  exf4 {[%clk 0:02:02]} 14. Nxf4 {[%clk 0:02:38]}  Nxf4 {[%clk 0:01:59]} 15. Bxf4 {[%clk 0:02:39]}  Bxf5 {[%clk 0:01:57]} 16. g4 {[%clk 0:02:19]}  Bc8 {[%clk 0:01:49]} 17. Nd5 {[%clk 0:02:11]}  Be6 {[%clk 0:01:38]} 18. Rb1 {[%clk 0:02:03]}  Rb8 {[%clk 0:01:34]} 19. b3 {[%clk 0:01:59]}  Bxd5 {[%clk 0:01:31]} 20. Bxd5+ {[%clk 0:01:58]}  Kh8 {[%clk 0:01:32]} 21. Qd2 {[%clk 0:01:52]}  Rxf4 {[%clk 0:00:48]} 22. Rxf4 {[%clk 0:01:50]}  Be5 {[%clk 0:00:48]} 23. Kh1 {[%clk 0:01:23]}  Qh4 {[%clk 0:00:41]} 24. Rff1 {[%clk 0:01:06]}  Qxh3+ {[%clk 0:00:36]} 25. Kg1 {[%clk 0:01:02]}  Qg3+ {[%clk 0:00:17]} 26. Bg2 {[%clk 0:00:32]}  Qh2+ {[%clk 0:00:16]} 27. Kf2 {[%clk 0:00:33]}  Rf8+ {[%clk 0:00:12]} 28. Ke1 {[%clk 0:00:30]}  Bg3+ {[%clk 0:00:06]} 29. Kd1 {[%clk 0:00:28]}  Rxf1+ {[%clk 0:00:02]} 30. Bxf1 {[%clk 0:00:26]}  Qg1 {[%clk 0:00:02]} 31. Rb2 {[%clk 0:00:22]}  Qe3 {[%clk 0:00:03]} 32. Qxe3 {[%clk 0:00:21]} 1-0


[Site "https://www.chess.com"]

[Event "Titled Tuesday Blitz May 03 Early 2022"]
[White "Navalgund, Niranjan"]
[Black "Yurovskykh, Oleksandr"]
[WhiteFideId "5030854"]
[BlackFideId "14134020"]
[WhiteElo "2290"]
[BlackElo "2292"]
[Result "0-1"]
[Round "03"]
[TimeControl "180+1"]
[Date "2022.05.03"]
[WhiteClock "0:00:09"]
[BlackClock "0:00:21"]

1. d4 {[%clk 0:03:00]}  d5 {[%clk 0:02:59]} 2. Nf3 {[%clk 0:02:54]}  Nf6 {[%clk 0:02:58]} 3. c4 {[%clk 0:02:53]}  dxc4 {[%clk 0:02:58]} 4. Na3 {[%clk 0:02:52]}  e6 {[%clk 0:02:51]} 5. Nxc4 {[%clk 0:02:50]}  c5 {[%clk 0:02:51]} 6. g3 {[%clk 0:02:49]}  b5 {[%clk 0:02:49]} 7. Nce5 {[%clk 0:02:48]}  Bb7 {[%clk 0:02:49]} 8. Bg2 {[%clk 0:02:48]}  cxd4 {[%clk 0:02:43]} 9. O-O {[%clk 0:02:48]}  Be7 {[%clk 0:02:43]} 10. Qxd4 {[%clk 0:02:47]}  O-O {[%clk 0:02:37]} 11. Bg5 {[%clk 0:02:42]}  Qxd4 {[%clk 0:02:34]} 12. Nxd4 {[%clk 0:02:42]}  Bxg2 {[%clk 0:02:34]} 13. Kxg2 {[%clk 0:02:43]}  a6 {[%clk 0:02:32]} 14. Rac1 {[%clk 0:02:42]}  Bd6 {[%clk 0:02:24]} 15. Nd3 {[%clk 0:02:23]}  Nbd7 {[%clk 0:02:14]} 16. Rc6 {[%clk 0:02:21]}  Be5 {[%clk 0:02:01]} 17. Nxe5 {[%clk 0:01:50]}  Nxe5 {[%clk 0:02:02]} 18. Rc7 {[%clk 0:01:51]}  Rfc8 {[%clk 0:02:01]} 19. Rfc1 {[%clk 0:01:49]}  Nc4 {[%clk 0:01:57]} 20. Rxc8+ {[%clk 0:01:45]}  Rxc8 {[%clk 0:01:58]} 21. b3 {[%clk 0:01:45]}  Nb6 {[%clk 0:01:54]} 22. Rxc8+ {[%clk 0:01:39]}  Nxc8 {[%clk 0:01:55]} 23. Nc6 {[%clk 0:01:40]}  Nd7 {[%clk 0:01:54]} 24. Bd8 {[%clk 0:01:34]}  f6 {[%clk 0:01:51]} 25. Nb4 {[%clk 0:01:34]}  Nc5 {[%clk 0:01:41]} 26. Kf3 {[%clk 0:01:29]}  Kf7 {[%clk 0:01:38]} 27. Ke3 {[%clk 0:01:29]}  Ke8 {[%clk 0:01:36]} 28. Bc7 {[%clk 0:01:26]}  Kd7 {[%clk 0:01:31]} 29. Bb8 {[%clk 0:01:25]}  e5 {[%clk 0:01:28]} 30. f4 {[%clk 0:01:24]}  exf4+ {[%clk 0:01:26]} 31. Bxf4 {[%clk 0:01:23]}  a5 {[%clk 0:01:15]} 32. Nd5 {[%clk 0:00:59]}  a4 {[%clk 0:01:11]} 33. Kd4 {[%clk 0:00:58]}  axb3 {[%clk 0:01:06]} 34. axb3 {[%clk 0:00:57]}  Nxb3+ {[%clk 0:01:06]} 35. Kc3 {[%clk 0:00:57]}  Nc5 {[%clk 0:00:48]} 36. Kb4 {[%clk 0:00:55]}  Kc6 {[%clk 0:00:47]} 37. Nc3 {[%clk 0:00:45]}  Na6+ {[%clk 0:00:48]} 38. Ka5 {[%clk 0:00:44]}  b4 {[%clk 0:00:47]} 39. Na4 {[%clk 0:00:43]}  Nc5 {[%clk 0:00:43]} 40. Kxb4 {[%clk 0:00:41]}  Nxa4 {[%clk 0:00:42]} 41. Kxa4 {[%clk 0:00:42]}  Kd5 {[%clk 0:00:42]} 42. Kb4 {[%clk 0:00:39]}  Ne7 {[%clk 0:00:38]} 43. Kc3 {[%clk 0:00:38]}  Ke4 {[%clk 0:00:37]} 44. Kc4 {[%clk 0:00:38]}  h5 {[%clk 0:00:34]} 45. Kc5 {[%clk 0:00:37]}  Nf5 {[%clk 0:00:34]} 46. Kc6 {[%clk 0:00:34]}  Nd4+ {[%clk 0:00:34]} 47. Kd7 {[%clk 0:00:34]}  Nxe2 {[%clk 0:00:35]} 48. Bb8 {[%clk 0:00:33]}  Kf5 {[%clk 0:00:33]} 49. Ke7 {[%clk 0:00:33]}  Nd4 {[%clk 0:00:32]} 50. Kf7 {[%clk 0:00:33]}  g5 {[%clk 0:00:32]} 51. Kg7 {[%clk 0:00:32]}  Nc6 {[%clk 0:00:29]} 52. Bc7 {[%clk 0:00:31]}  Nd4 {[%clk 0:00:24]} 53. Kh6 {[%clk 0:00:31]}  Ne6 {[%clk 0:00:25]} 54. Bb8 {[%clk 0:00:30]}  Kg4 {[%clk 0:00:17]} 55. Kg6 {[%clk 0:00:11]}  Nf8+ {[%clk 0:00:17]} 56. Kxf6 {[%clk 0:00:11]}  Nd7+ {[%clk 0:00:18]} 57. Kg6 {[%clk 0:00:12]}  Nxb8 {[%clk 0:00:18]} 58. h3+ {[%clk 0:00:12]}  Kxg3 {[%clk 0:00:17]} 59. Kxh5 {[%clk 0:00:12]}  Kf4 {[%clk 0:00:17]} 60. Kg6 {[%clk 0:00:10]}  Nc6 {[%clk 0:00:17]} 61. Kh5 {[%clk 0:00:10]}  Ne5 {[%clk 0:00:17]} 62. Kh6 {[%clk 0:00:10]}  Nf3 {[%clk 0:00:18]} 63. Kh5 {[%clk 0:00:10]}  Kg3 {[%clk 0:00:18]} 64. h4 {[%clk 0:00:08]}  gxh4 {[%clk 0:00:19]} 65. Kg6 {[%clk 0:00:08]}  h3 {[%clk 0:00:19]} 66. Kf5 {[%clk 0:00:09]}  h2 {[%clk 0:00:20]} 67. Ke4 {[%clk 0:00:09]}  h1=Q {[%clk 0:00:21]} 0-1


[Site "https://www.chess.com"]

[Event "Titled Tuesday Blitz May 03 Early 2022"]
[White "Osmak, Yuliia"]
[Black "Pein, Jonathan"]
[WhiteFideId "14101602"]
[BlackFideId "417092"]
[WhiteElo "2302"]
[BlackElo "2140"]
[Result "0-1"]
[Round "03"]
[TimeControl "180+1"]
[Date "2022.05.03"]
[WhiteClock "0:00:06"]
[BlackClock "0:00:16"]

1. e4 {[%clk 0:03:00]}  c6 {[%clk 0:02:56]} 2. Nf3 {[%clk 0:02:59]}  d5 {[%clk 0:02:55]} 3. d3 {[%clk 0:02:59]}  g6 {[%clk 0:02:52]} 4. e5 {[%clk 0:02:51]}  Bg7 {[%clk 0:02:49]} 5. d4 {[%clk 0:02:51]}  h5 {[%clk 0:02:47]} 6. Bd3 {[%clk 0:02:50]}  Nh6 {[%clk 0:02:46]} 7. O-O {[%clk 0:02:47]}  O-O {[%clk 0:02:44]} 8. Re1 {[%clk 0:02:42]}  Na6 {[%clk 0:02:43]} 9. c3 {[%clk 0:02:41]}  Nc7 {[%clk 0:02:38]} 10. h3 {[%clk 0:02:34]}  a5 {[%clk 0:02:37]} 11. a4 {[%clk 0:02:16]}  b6 {[%clk 0:02:37]} 12. Qe2 {[%clk 0:02:15]}  Ba6 {[%clk 0:02:35]} 13. Na3 {[%clk 0:02:12]}  Nf5 {[%clk 0:02:32]} 14. Bxa6 {[%clk 0:02:11]}  Nxa6 {[%clk 0:02:33]} 15. g4 {[%clk 0:02:00]}  hxg4 {[%clk 0:02:32]} 16. hxg4 {[%clk 0:02:01]}  Nh6 {[%clk 0:02:28]} 17. Ng5 {[%clk 0:01:57]}  e6 {[%clk 0:02:07]} 18. Kg2 {[%clk 0:01:50]}  Nc7 {[%clk 0:02:00]} 19. Rh1 {[%clk 0:01:44]}  f6 {[%clk 0:02:00]} 20. exf6 {[%clk 0:01:42]}  Qxf6 {[%clk 0:01:56]} 21. Be3 {[%clk 0:01:38]}  Rae8 {[%clk 0:01:54]} 22. f4 {[%clk 0:01:34]}  Nf7 {[%clk 0:01:35]} 23. Nh7 {[%clk 0:01:32]}  Qe7 {[%clk 0:01:30]} 24. Rh3 {[%clk 0:01:26]}  e5 {[%clk 0:01:25]} 25. Nxf8 {[%clk 0:01:25]}  Kxf8 {[%clk 0:01:24]} 26. fxe5 {[%clk 0:01:23]}  Ne6 {[%clk 0:01:22]} 27. Rf1 {[%clk 0:01:21]}  Kg8 {[%clk 0:01:18]} 28. Qd3 {[%clk 0:01:14]}  Nf8 {[%clk 0:01:12]} 29. Nc2 {[%clk 0:01:09]}  Qe6 {[%clk 0:01:12]} 30. Qe2 {[%clk 0:01:03]}  c5 {[%clk 0:01:11]} 31. Rhf3 {[%clk 0:00:56]}  Qxg4+ {[%clk 0:01:07]} 32. Kf2 {[%clk 0:00:52]}  Qh4+ {[%clk 0:01:02]} 33. Kg2 {[%clk 0:00:51]}  Qg4+ {[%clk 0:00:58]} 34. Kh2 {[%clk 0:00:50]}  Qh5+ {[%clk 0:00:55]} 35. Kg3 {[%clk 0:00:47]}  Nxe5 {[%clk 0:00:45]} 36. Rxf8+ {[%clk 0:00:47]}  Bxf8 {[%clk 0:00:37]} 37. Qxh5 {[%clk 0:00:46]}  gxh5 {[%clk 0:00:38]} 38. dxe5 {[%clk 0:00:46]}  Rxe5 {[%clk 0:00:39]} 39. Kf4 {[%clk 0:00:38]}  Re4+ {[%clk 0:00:39]} 40. Kf5 {[%clk 0:00:36]}  Rxa4 {[%clk 0:00:38]} 41. Kg6 {[%clk 0:00:32]}  h4 {[%clk 0:00:36]} 42. Bg5 {[%clk 0:00:27]}  Rg4 {[%clk 0:00:29]} 43. Kh5 {[%clk 0:00:26]}  Rg2 {[%clk 0:00:29]} 44. Ne3 {[%clk 0:00:25]}  Rxb2 {[%clk 0:00:27]} 45. Nxd5 {[%clk 0:00:25]}  h3 {[%clk 0:00:24]} 46. Kg6 {[%clk 0:00:21]}  h2 {[%clk 0:00:19]} 47. Nf6+ {[%clk 0:00:21]}  Kh8 {[%clk 0:00:19]} 48. Bf4 {[%clk 0:00:20]}  Bg7 {[%clk 0:00:18]} 49. Nh5 {[%clk 0:00:18]}  Rg2+ {[%clk 0:00:18]} 50. Kf7 {[%clk 0:00:17]}  Rg1 {[%clk 0:00:18]} 51. Bxh2 {[%clk 0:00:07]}  Rxf1+ {[%clk 0:00:18]} 52. Ke6 {[%clk 0:00:08]}  Rh1 {[%clk 0:00:18]} 53. Nxg7 {[%clk 0:00:07]}  Rxh2 {[%clk 0:00:17]} 54. Nf5 {[%clk 0:00:06]}  Rh3 {[%clk 0:00:17]} 55. c4 {[%clk 0:00:06]}  a4 {[%clk 0:00:16]} 0-1


[Site "https://www.chess.com"]

[Event "Titled Tuesday Blitz May 03 Early 2022"]
[White "Ozturk, Efe Hakan"]
[Black "Avazkhonov, Alikhon"]
[WhiteFideId "34550216"]
[BlackFideId "14208504"]
[WhiteElo "1924"]
[BlackElo "1739"]
[Result "1-0"]
[Round "03"]
[TimeControl "180+1"]
[Date "2022.05.03"]
[WhiteClock "0:00:31"]
[BlackClock "0:00:02"]

1. Nf3 {[%clk 0:03:00]}  Nf6 {[%clk 0:02:58]} 2. c4 {[%clk 0:02:59]}  g6 {[%clk 0:02:55]} 3. g3 {[%clk 0:03:00]}  Bg7 {[%clk 0:02:55]} 4. Bg2 {[%clk 0:03:00]}  O-O {[%clk 0:02:56]} 5. O-O {[%clk 0:03:01]}  d6 {[%clk 0:02:57]} 6. d4 {[%clk 0:03:01]}  Nbd7 {[%clk 0:02:57]} 7. Nc3 {[%clk 0:03:01]}  e5 {[%clk 0:02:58]} 8. e4 {[%clk 0:03:02]}  exd4 {[%clk 0:02:58]} 9. Nxd4 {[%clk 0:03:02]}  Re8 {[%clk 0:02:58]} 10. b3 {[%clk 0:03:03]}  a6 {[%clk 0:02:59]} 11. Re1 {[%clk 0:02:55]}  Rb8 {[%clk 0:02:57]} 12. Bb2 {[%clk 0:02:40]}  c5 {[%clk 0:02:52]} 13. Nc2 {[%clk 0:02:38]}  b5 {[%clk 0:02:50]} 14. cxb5 {[%clk 0:02:37]}  axb5 {[%clk 0:02:51]} 15. Qxd6 {[%clk 0:02:34]}  b4 {[%clk 0:02:40]} 16. Na4 {[%clk 0:02:27]}  Re6 {[%clk 0:02:04]} 17. Qd2 {[%clk 0:02:12]}  Qe7 {[%clk 0:02:03]} 18. f3 {[%clk 0:01:40]}  Bb7 {[%clk 0:01:45]} 19. Rad1 {[%clk 0:01:34]}  Rd8 {[%clk 0:00:27]} 20. Bh3 {[%clk 0:01:26]}  Ra6 {[%clk 0:00:05]} 21. Bxd7 {[%clk 0:00:34]}  Rxd7 {[%clk 0:00:03]} 22. Bxf6 {[%clk 0:00:30]}  Rxd2 {[%clk 0:00:03]} 23. Bxe7 {[%clk 0:00:31]}  Rxd1 {[%clk 0:00:02]} 24. Rxd1 {[%clk 0:00:31]} 1-0


[Site "https://www.chess.com"]

[Event "Titled Tuesday Blitz May 03 Early 2022"]
[White "Paravyan, David"]
[Black "Tanenbaum, Zachary"]
[WhiteFideId "4194985"]
[BlackFideId "2060850"]
[WhiteElo "2569"]
[BlackElo "2168"]
[Result "1-0"]
[Round "03"]
[TimeControl "180+1"]
[Date "2022.05.03"]
[WhiteClock "0:02:52"]
[BlackClock "0:01:59"]

1. e4 {[%clk 0:03:00]}  e5 {[%clk 0:02:59]} 2. Nf3 {[%clk 0:03:01]}  Nc6 {[%clk 0:03:00]} 3. Nc3 {[%clk 0:03:00]}  Nf6 {[%clk 0:03:01]} 4. d4 {[%clk 0:03:00]}  exd4 {[%clk 0:03:02]} 5. Nxd4 {[%clk 0:03:01]}  Bb4 {[%clk 0:03:02]} 6. Nxc6 {[%clk 0:03:01]}  bxc6 {[%clk 0:03:03]} 7. Bd3 {[%clk 0:03:02]}  d5 {[%clk 0:03:04]} 8. exd5 {[%clk 0:03:03]}  O-O {[%clk 0:03:04]} 9. O-O {[%clk 0:03:03]}  cxd5 {[%clk 0:03:05]} 10. Bg5 {[%clk 0:03:04]}  c6 {[%clk 0:03:04]} 11. Qf3 {[%clk 0:03:04]}  Be7 {[%clk 0:03:04]} 12. h3 {[%clk 0:03:03]}  Be6 {[%clk 0:03:03]} 13. Ne2 {[%clk 0:03:01]}  Rb8 {[%clk 0:03:02]} 14. b3 {[%clk 0:03:01]}  Re8 {[%clk 0:02:53]} 15. Nd4 {[%clk 0:03:00]}  c5 {[%clk 0:02:43]} 16. Nc6 {[%clk 0:02:59]}  Qd7 {[%clk 0:02:37]} 17. Nxb8 {[%clk 0:02:58]}  Rxb8 {[%clk 0:02:38]} 18. Rad1 {[%clk 0:02:59]}  d4 {[%clk 0:02:25]} 19. Rfe1 {[%clk 0:02:57]}  Rb6 {[%clk 0:02:24]} 20. c3 {[%clk 0:02:56]}  Bd5 {[%clk 0:02:24]} 21. Qg3 {[%clk 0:02:52]}  dxc3 {[%clk 0:02:06]} 22. Bc2 {[%clk 0:02:53]}  h6 {[%clk 0:01:59]} 23. Bxf6 {[%clk 0:02:53]}  Bxf6 {[%clk 0:02:00]} 24. Qd3 {[%clk 0:02:52]}  Bd4 {[%clk 0:01:59]} 25. Qh7+ {[%clk 0:02:51]}  Kf8 {[%clk 0:01:59]} 26. Qh8# {[%clk 0:02:52]} 1-0


[Site "https://www.chess.com"]

[Event "Titled Tuesday Blitz May 03 Early 2022"]
[White "Petre, Nad-Titus"]
[Black "Stribuk, Artiom"]
[WhiteFideId "1204165"]
[BlackFideId "13515659"]
[WhiteElo "2354"]
[BlackElo "2259"]
[Result "0-1"]
[Round "03"]
[TimeControl "180+1"]
[Date "2022.05.03"]
[WhiteClock "0:00:03"]
[BlackClock "0:00:18"]

1. e4 {[%clk 0:03:00]}  c5 {[%clk 0:02:59]} 2. Nc3 {[%clk 0:03:00]}  Nc6 {[%clk 0:02:58]} 3. Bb5 {[%clk 0:03:01]}  Nd4 {[%clk 0:02:58]} 4. Nf3 {[%clk 0:03:02]}  a6 {[%clk 0:02:54]} 5. Bd3 {[%clk 0:03:02]}  e6 {[%clk 0:02:54]} 6. Nxd4 {[%clk 0:02:48]}  cxd4 {[%clk 0:02:54]} 7. Ne2 {[%clk 0:02:48]}  Bc5 {[%clk 0:02:55]} 8. O-O {[%clk 0:02:42]}  Ne7 {[%clk 0:02:54]} 9. c3 {[%clk 0:02:39]}  Nc6 {[%clk 0:02:51]} 10. b4 {[%clk 0:02:33]}  Bb6 {[%clk 0:02:49]} 11. a4 {[%clk 0:02:33]}  O-O {[%clk 0:02:38]} 12. f4 {[%clk 0:02:14]}  d6 {[%clk 0:02:25]} 13. Kh1 {[%clk 0:02:08]}  e5 {[%clk 0:02:16]} 14. Bb2 {[%clk 0:02:07]}  d5 {[%clk 0:02:01]} 15. b5 {[%clk 0:01:58]}  axb5 {[%clk 0:01:58]} 16. axb5 {[%clk 0:01:59]}  Rxa1 {[%clk 0:01:57]} 17. Qxa1 {[%clk 0:01:49]}  Na5 {[%clk 0:01:27]} 18. fxe5 {[%clk 0:01:30]}  Nb3 {[%clk 0:01:17]} 19. Qd1 {[%clk 0:00:48]}  Nc5 {[%clk 0:01:17]} 20. Ba3 {[%clk 0:00:44]}  Nxd3 {[%clk 0:01:11]} 21. Bxf8 {[%clk 0:00:44]}  Kxf8 {[%clk 0:01:02]} 22. Nxd4 {[%clk 0:00:37]}  Nxe5 {[%clk 0:00:51]} 23. Qh5 {[%clk 0:00:35]}  Ng6 {[%clk 0:00:42]} 24. Qxh7 {[%clk 0:00:33]}  Qg5 {[%clk 0:00:37]} 25. exd5 {[%clk 0:00:17]}  Bxd4 {[%clk 0:00:36]} 26. cxd4 {[%clk 0:00:18]}  Nf4 {[%clk 0:00:27]} 27. Qh8+ {[%clk 0:00:14]}  Ke7 {[%clk 0:00:27]} 28. Re1+ {[%clk 0:00:15]}  Be6 {[%clk 0:00:19]} 29. d6+ {[%clk 0:00:05]}  Kd7 {[%clk 0:00:18]} 30. Rg1 {[%clk 0:00:03]}  Bd5 {[%clk 0:00:18]} 0-1


[Site "https://www.chess.com"]

[Event "Titled Tuesday Blitz May 03 Early 2022"]
[White "Pinero Rodriguez, Carlos Jose"]
[Black "Di Nicolantonio, Lucas"]
[WhiteFideId "3901726"]
[BlackFideId "680460"]
[WhiteElo "2053"]
[BlackElo "2381"]
[Result "1-0"]
[Round "03"]
[TimeControl "180+1"]
[Date "2022.05.03"]
[WhiteClock "0:00:14"]
[BlackClock "0:00:04"]

1. b3 {[%clk 0:03:00]}  Nf6 {[%clk 0:02:56]} 2. Bb2 {[%clk 0:03:00]}  e6 {[%clk 0:02:55]} 3. e3 {[%clk 0:03:01]}  d5 {[%clk 0:02:56]} 4. c4 {[%clk 0:03:01]}  Be7 {[%clk 0:02:56]} 5. Qc2 {[%clk 0:03:00]}  O-O {[%clk 0:02:56]} 6. Nf3 {[%clk 0:03:00]}  c5 {[%clk 0:02:56]} 7. h4 {[%clk 0:02:58]}  Nc6 {[%clk 0:02:55]} 8. a3 {[%clk 0:02:58]}  d4 {[%clk 0:02:55]} 9. exd4 {[%clk 0:02:54]}  cxd4 {[%clk 0:02:53]} 10. b4 {[%clk 0:02:54]}  e5 {[%clk 0:02:33]} 11. b5 {[%clk 0:02:47]}  Na5 {[%clk 0:02:33]} 12. Nxe5 {[%clk 0:02:39]}  Re8 {[%clk 0:02:32]} 13. Be2 {[%clk 0:02:02]}  Bf8 {[%clk 0:01:59]} 14. f4 {[%clk 0:01:58]}  Ng4 {[%clk 0:01:51]} 15. Bxg4 {[%clk 0:01:14]}  Bxg4 {[%clk 0:01:48]} 16. Kf2 {[%clk 0:01:11]}  Bc5 {[%clk 0:01:30]} 17. d3 {[%clk 0:01:08]}  Bc8 {[%clk 0:01:07]} 18. Nd2 {[%clk 0:01:03]}  f6 {[%clk 0:01:04]} 19. Nef3 {[%clk 0:01:03]}  b6 {[%clk 0:01:00]} 20. Rhe1 {[%clk 0:00:56]}  Re3 {[%clk 0:00:55]} 21. Ne4 {[%clk 0:00:50]}  Bf5 {[%clk 0:00:38]} 22. Nxc5 {[%clk 0:00:49]}  bxc5 {[%clk 0:00:39]} 23. Rxe3 {[%clk 0:00:47]}  dxe3+ {[%clk 0:00:38]} 24. Kxe3 {[%clk 0:00:48]}  Qd6 {[%clk 0:00:36]} 25. Rd1 {[%clk 0:00:41]}  Re8+ {[%clk 0:00:35]} 26. Kf2 {[%clk 0:00:41]}  Qxf4 {[%clk 0:00:35]} 27. Qd2 {[%clk 0:00:39]}  Qc7 {[%clk 0:00:16]} 28. Bc3 {[%clk 0:00:38]}  Nb7 {[%clk 0:00:15]} 29. Re1 {[%clk 0:00:38]}  Rd8 {[%clk 0:00:15]} 30. Re3 {[%clk 0:00:29]}  h5 {[%clk 0:00:15]} 31. g3 {[%clk 0:00:28]}  Nd6 {[%clk 0:00:14]} 32. Ba5 {[%clk 0:00:28]}  Ne4+ {[%clk 0:00:07]} 33. Rxe4 {[%clk 0:00:22]}  Qd7 {[%clk 0:00:07]} 34. Bxd8 {[%clk 0:00:21]}  Bxe4 {[%clk 0:00:07]} 35. Ba5 {[%clk 0:00:15]}  Bxf3 {[%clk 0:00:05]} 36. Kxf3 {[%clk 0:00:15]}  Qh3 {[%clk 0:00:06]} 37. Qf4 {[%clk 0:00:15]}  Qf1+ {[%clk 0:00:06]} 38. Ke3 {[%clk 0:00:15]}  Qc1+ {[%clk 0:00:06]} 39. Ke4 {[%clk 0:00:13]}  Qh1+ {[%clk 0:00:06]} 40. Kf5 {[%clk 0:00:13]}  Kh7 {[%clk 0:00:04]} 41. Ke6 {[%clk 0:00:13]}  Qh3+ {[%clk 0:00:05]} 42. Qf5+ {[%clk 0:00:13]}  Qxf5+ {[%clk 0:00:04]} 43. Kxf5 {[%clk 0:00:13]}  g6+ {[%clk 0:00:04]} 44. Kxf6 {[%clk 0:00:14]} 1-0


[Site "https://www.chess.com"]